[Event "Early-Titled-Tuesday-Blitz-December-26-2023"]
[Site "Chess.com"]
[Date "2023.12.26"]
[Round "2"]
[White "The_Straightforward_Rook"]
[Black "roxannyzoldyck"]
[Result "1-0"]
[WhiteElo "2516"]
[BlackElo "2240"]
[TimeControl "180+1"]
[EndTime "8:16:01 PST"]
[Termination "The_Straightforward_Rook won by resignation"]

1. e4 {[%clk 0:03:00.9]} 1... c5 {[%clk 0:02:59.5]} 2. c3 {[%clk 0:03:00.7]}
2... Nf6 {[%clk 0:02:58.8]} 3. e5 {[%clk 0:03:00.5]} 3... Nd5 {[%clk 0:02:58.1]}
4. Nf3 {[%clk 0:03:01.4]} 4... d6 {[%clk 0:02:56.3]} 5. Bc4 {[%clk 0:03:00.8]}
5... dxe5 {[%clk 0:02:54.4]} 6. Nxe5 {[%clk 0:02:59.5]} 6... e6 {[%clk
0:02:29.8]} 7. O-O {[%clk 0:02:54.5]} 7... Be7 {[%clk 0:02:25.3]} 8. d4 {[%clk
0:02:50.5]} 8... cxd4 {[%clk 0:02:23.2]} 9. cxd4 {[%clk 0:02:51.4]} 9... O-O
{[%clk 0:02:22.9]} 10. Nc3 {[%clk 0:02:51.5]} 10... Nc6 {[%clk 0:02:21.7]} 11.
Nxd5 {[%clk 0:02:43.7]} 11... exd5 {[%clk 0:02:19]} 12. Nxc6 {[%clk 0:02:44.6]}
12... bxc6 {[%clk 0:02:18.8]} 13. Bd3 {[%clk 0:02:45.5]} 13... Rb8 {[%clk
0:02:14.3]} 14. Qc2 {[%clk 0:02:42.3]} 14... h6 {[%clk 0:02:12.5]} 15. b3 {[%clk
0:02:35.3]} 15... Be6 {[%clk 0:02:05.9]} 16. Qxc6 {[%clk 0:02:32.2]} 16... Qa5
{[%clk 0:01:59.8]} 17. Bf4 {[%clk 0:02:24]} 17... Rfc8 {[%clk 0:01:51]} 18. Qa6
{[%clk 0:02:22.8]} 18... Qc3 {[%clk 0:01:15.6]} 19. Bxb8 {[%clk 0:02:18.4]}
19... Rxb8 {[%clk 0:01:16.5]} 20. Qxa7 {[%clk 0:02:13.6]} 20... Bd6 {[%clk
0:01:15.6]} 21. Rad1 {[%clk 0:02:06]} 21... Rc8 {[%clk 0:01:09.1]} 22. Bb1
{[%clk 0:01:45]} 22... Bg4 {[%clk 0:01:05.1]} 23. f3 {[%clk 0:01:44.2]} 23...
Be6 {[%clk 0:01:00.8]} 24. Rfe1 {[%clk 0:01:41.3]} 24... Bb4 {[%clk 0:00:54.2]}
25. Qa6 {[%clk 0:01:36]} 25... Rc6 {[%clk 0:00:31.6]} 26. Qd3 {[%clk 0:01:32.9]}
26... Qxd3 {[%clk 0:00:26.2]} 27. Bxd3 {[%clk 0:01:33.8]} 27... Bxe1 {[%clk
0:00:25.2]} 28. Rxe1 {[%clk 0:01:34.7]} 28... Kf8 {[%clk 0:00:22.5]} 29. Kf2
{[%clk 0:01:33.9]} 29... Ke7 {[%clk 0:00:22.6]} 30. Ke3 {[%clk 0:01:34.1]} 30...
Kd6 {[%clk 0:00:22.7]} 31. Kd2 {[%clk 0:01:32.4]} 31... Rc7 {[%clk 0:00:18.4]}
32. a4 {[%clk 0:01:30.9]} 32... Rb7 {[%clk 0:00:17.9]} 33. Bb5 {[%clk
0:01:31.5]} 33... Bf5 {[%clk 0:00:16.8]} 34. Rc1 {[%clk 0:01:31]} 34... Bd7
{[%clk 0:00:15.7]} 35. Bxd7 {[%clk 0:01:29.8]} 35... Kxd7 {[%clk 0:00:16.6]} 36.
Rc3 {[%clk 0:01:29.7]} 36... Kd6 {[%clk 0:00:16.9]} 37. Kc2 {[%clk 0:01:27.7]}
37... Rb4 {[%clk 0:00:16.7]} 38. Kd3 {[%clk 0:01:26.8]} 38... Rb7 {[%clk
0:00:16.7]} 39. a5 {[%clk 0:01:26.6]} 39... Rb5 {[%clk 0:00:16.2]} 40. Rc5
{[%clk 0:01:25.1]} 40... Rxc5 {[%clk 0:00:16.2]} 41. dxc5+ {[%clk 0:01:24.8]}
41... Kxc5 {[%clk 0:00:17.1]} 42. b4+ {[%clk 0:01:25]} 42... Kb5 {[%clk
0:00:17.6]} 43. Kd4 {[%clk 0:01:25.4]} 1-0

[Event "Early-Titled-Tuesday-Blitz-December-26-2023"]
[Site "Chess.com"]
[Date "2023.12.26"]
[Round "2"]
[White "JoliyRoger"]
[Black "Karacsonyi_Gellert"]
[Result "0-1"]
[WhiteElo "2520"]
[BlackElo "2737"]
[TimeControl "180+1"]
[EndTime "8:16:11 PST"]
[Termination "Karacsonyi_Gellert won on time"]

1. d4 {[%clk 0:03:00.9]} 1... Nf6 {[%clk 0:02:59.5]} 2. c4 {[%clk 0:03:01.4]}
2... e6 {[%clk 0:02:59.4]} 3. Nf3 {[%clk 0:03:00.5]} 3... d5 {[%clk 0:02:58.6]}
4. Nc3 {[%clk 0:03:00.8]} 4... Nbd7 {[%clk 0:02:58.8]} 5. e3 {[%clk 0:02:55.1]}
5... Be7 {[%clk 0:02:57.1]} 6. b3 {[%clk 0:02:54.4]} 6... O-O {[%clk 0:02:57]}
7. Bb2 {[%clk 0:02:54.8]} 7... b6 {[%clk 0:02:57]} 8. Bd3 {[%clk 0:02:54.5]}
8... Bb7 {[%clk 0:02:57.6]} 9. O-O {[%clk 0:02:54.9]} 9... Rc8 {[%clk 0:02:56]}
10. Qe2 {[%clk 0:02:54.8]} 10... c5 {[%clk 0:02:55.8]} 11. Rac1 {[%clk
0:02:31.4]} 11... Ne4 {[%clk 0:02:54.1]} 12. cxd5 {[%clk 0:02:22.9]} 12... exd5
{[%clk 0:02:49.8]} 13. Ba6 {[%clk 0:02:19.4]} 13... Nxc3 {[%clk 0:02:45]} 14.
Bxc3 {[%clk 0:02:12.7]} 14... Qc7 {[%clk 0:02:45.2]} 15. h3 {[%clk 0:02:05.1]}
15... Nf6 {[%clk 0:02:40.1]} 16. dxc5 {[%clk 0:01:20.8]} 16... bxc5 {[%clk
0:02:37.7]} 17. Ba5 {[%clk 0:01:03.2]} 17... Qb8 {[%clk 0:02:26.7]} 18. Rfd1
{[%clk 0:00:55.7]} 18... c4 {[%clk 0:02:05.9]} 19. Bxb7 {[%clk 0:00:53.9]} 19...
Qxb7 {[%clk 0:02:06.8]} 20. Nd4 {[%clk 0:00:49.4]} 20... cxb3 {[%clk 0:02:00.7]}
21. axb3 {[%clk 0:00:46.6]} 21... Ne4 {[%clk 0:02:01.2]} 22. Qg4 {[%clk
0:00:37.5]} 22... Bf6 {[%clk 0:01:56.5]} 23. Rxc8 {[%clk 0:00:29.9]} 23... Rxc8
{[%clk 0:01:57.4]} 24. b4 {[%clk 0:00:15.5]} 24... g6 {[%clk 0:01:50]} 25. h4
{[%clk 0:00:12.1]} 25... h5 {[%clk 0:01:49.7]} 26. Qf4 {[%clk 0:00:12]} 26...
Qe7 {[%clk 0:01:41.1]} 27. Nf3 {[%clk 0:00:11.2]} 27... Nc3 {[%clk 0:01:37.6]}
28. Re1 {[%clk 0:00:09]} 28... Kg7 {[%clk 0:01:29.6]} 29. Ng5 {[%clk 0:00:08]}
29... Ne2+ {[%clk 0:01:24]} 30. Rxe2 {[%clk 0:00:05.4]} 30... Rc1+ {[%clk
0:01:24.7]} 31. Kh2 {[%clk 0:00:05.5]} 31... Be5 {[%clk 0:01:25.5]} 32. Nh3
{[%clk 0:00:03.7]} 32... Bxf4+ {[%clk 0:01:25.3]} 33. Nxf4 {[%clk 0:00:03.5]}
33... Qxh4+ {[%clk 0:01:25.6]} 34. Nh3 {[%clk 0:00:04.1]} 34... g5 {[%clk
0:01:21.9]} 35. g3 {[%clk 0:00:02.3]} 35... Qe4 {[%clk 0:01:19.2]} 0-1

[Event "Early-Titled-Tuesday-Blitz-December-26-2023"]
[Site "Chess.com"]
[Date "2023.12.26"]
[Round "2"]
[White "tylityli"]
[Black "Kimster98"]
[Result "0-1"]
[WhiteElo "2251"]
[BlackElo "2689"]
[TimeControl "180+1"]
[EndTime "8:16:13 PST"]
[Termination "Kimster98 won on time"]

1. d4 {[%clk 0:03:00.9]} 1... d6 {[%clk 0:03:00.9]} 2. e4 {[%clk 0:02:57.9]}
2... Nf6 {[%clk 0:02:59.6]} 3. Nc3 {[%clk 0:02:57.9]} 3... e5 {[%clk 0:02:57.2]}
4. Nf3 {[%clk 0:02:56.3]} 4... Nbd7 {[%clk 0:02:56.8]} 5. g3 {[%clk 0:02:55]}
5... Be7 {[%clk 0:02:51]} 6. Bg2 {[%clk 0:02:54.6]} 6... O-O {[%clk 0:02:51.7]}
7. O-O {[%clk 0:02:54.9]} 7... c6 {[%clk 0:02:52.3]} 8. a4 {[%clk 0:02:54.2]}
8... b6 {[%clk 0:02:50.5]} 9. Nh4 {[%clk 0:02:47.3]} 9... g6 {[%clk 0:02:49.3]}
10. Bh6 {[%clk 0:02:43.7]} 10... Re8 {[%clk 0:02:48.8]} 11. h3 {[%clk
0:02:38.6]} 11... Bb7 {[%clk 0:02:47.8]} 12. Re1 {[%clk 0:02:31.1]} 12... a6
{[%clk 0:02:46.7]} 13. Qd2 {[%clk 0:02:17.4]} 13... Qc7 {[%clk 0:02:45]} 14.
Rad1 {[%clk 0:02:15.6]} 14... b5 {[%clk 0:02:43.6]} 15. axb5 {[%clk 0:02:03.5]}
15... axb5 {[%clk 0:02:44.5]} 16. d5 {[%clk 0:02:01.9]} 16... b4 {[%clk
0:02:43.4]} 17. Ne2 {[%clk 0:01:34.8]} 17... cxd5 {[%clk 0:02:42.6]} 18. exd5
{[%clk 0:01:34.7]} 18... Nb6 {[%clk 0:02:42.4]} 19. Qxb4 {[%clk 0:01:24.1]}
19... Nfxd5 {[%clk 0:02:22.4]} 20. Qd2 {[%clk 0:01:19.2]} 20... Nc4 {[%clk
0:02:11.1]} 21. Qc1 {[%clk 0:01:12.2]} 21... Bxh4 {[%clk 0:01:50.2]} 22. Bxd5
{[%clk 0:01:05.8]} 22... Bxd5 {[%clk 0:01:48]} 23. Rxd5 {[%clk 0:01:04]} 23...
Be7 {[%clk 0:01:48.1]} 24. b3 {[%clk 0:00:41.4]} 24... Nb6 {[%clk 0:01:46.4]}
25. Rd3 {[%clk 0:00:37.3]} 25... d5 {[%clk 0:01:46.5]} 26. c4 {[%clk 0:00:17.3]}
26... dxc4 {[%clk 0:01:44.9]} 27. bxc4 {[%clk 0:00:18.2]} 27... Qxc4 {[%clk
0:01:44.5]} 28. Qxc4 {[%clk 0:00:17.6]} 28... Nxc4 {[%clk 0:01:45.4]} 29. Rdd1
{[%clk 0:00:14.6]} 29... Red8 {[%clk 0:01:43.9]} 30. Nc3 {[%clk 0:00:13]} 30...
Bb4 {[%clk 0:01:42]} 31. Rxd8+ {[%clk 0:00:12.2]} 31... Rxd8 {[%clk 0:01:41.1]}
32. Rc1 {[%clk 0:00:13]} 32... Bxc3 {[%clk 0:01:36.2]} 33. Rxc3 {[%clk
0:00:12.4]} 33... Nd6 {[%clk 0:01:37.1]} 34. Rc2 {[%clk 0:00:08.7]} 34... Nf5
{[%clk 0:01:35.4]} 35. Bg5 {[%clk 0:00:07.4]} 35... Rf8 {[%clk 0:01:34.9]} 36.
Kg2 {[%clk 0:00:06.7]} 36... f6 {[%clk 0:01:34.1]} 37. Be3 {[%clk 0:00:04.8]}
37... Kg7 {[%clk 0:01:32.9]} 38. Kf3 {[%clk 0:00:04.3]} 38... Rf7 {[%clk
0:01:31.4]} 39. g4 {[%clk 0:00:04.4]} 39... Nd6 {[%clk 0:01:30.6]} 40. Rc6
{[%clk 0:00:03.6]} 40... Rd7 {[%clk 0:01:29.1]} 41. Bc5 {[%clk 0:00:02.9]} 41...
Nf7 {[%clk 0:01:29.1]} 42. Be3 {[%clk 0:00:02.3]} 42... Rb7 {[%clk 0:01:26.5]}
43. h4 {[%clk 0:00:02.5]} 43... h5 {[%clk 0:01:26.2]} 44. Rc4 {[%clk 0:00:01.1]}
44... hxg4+ {[%clk 0:01:25.2]} 0-1

[Event "Early-Titled-Tuesday-Blitz-December-26-2023"]
[Site "Chess.com"]
[Date "2023.12.26"]
[Round "2"]
[White "karinachess1"]
[Black "KVAIDAN"]
[Result "0-1"]
[WhiteElo "2575"]
[BlackElo "2356"]
[TimeControl "180+1"]
[EndTime "8:16:15 PST"]
[Termination "KVAIDAN won by checkmate"]

1. d4 {[%clk 0:03:00.9]} 1... e6 {[%clk 0:02:59]} 2. c4 {[%clk 0:03:00.9]} 2...
f5 {[%clk 0:02:57.3]} 3. Nc3 {[%clk 0:02:59.2]} 3... Nf6 {[%clk 0:02:56.7]} 4.
g3 {[%clk 0:02:57.7]} 4... Be7 {[%clk 0:02:56.3]} 5. Bg2 {[%clk 0:02:57.9]} 5...
O-O {[%clk 0:02:54.7]} 6. Nf3 {[%clk 0:02:55.1]} 6... d6 {[%clk 0:02:55]} 7. O-O
{[%clk 0:02:54.4]} 7... a6 {[%clk 0:02:52.2]} 8. Re1 {[%clk 0:02:49.8]} 8... Ne4
{[%clk 0:02:49]} 9. Qc2 {[%clk 0:02:45.9]} 9... Nxc3 {[%clk 0:02:47.4]} 10. Qxc3
{[%clk 0:02:46.8]} 10... Nc6 {[%clk 0:01:57.4]} 11. a3 {[%clk 0:02:32.7]} 11...
e5 {[%clk 0:01:19.1]} 12. dxe5 {[%clk 0:02:04.7]} 12... dxe5 {[%clk 0:01:19]}
13. e4 {[%clk 0:02:00.3]} 13... fxe4 {[%clk 0:01:16.9]} 14. Nd2 {[%clk
0:01:26.1]} 14... e3 {[%clk 0:01:08]} 15. Qxe3 {[%clk 0:01:18.7]} 15... Nd4
{[%clk 0:01:07.7]} 16. Be4 {[%clk 0:01:08.2]} 16... Bg5 {[%clk 0:00:56.9]} 17.
Qd3 {[%clk 0:01:02]} 17... Qf6 {[%clk 0:00:52.1]} 18. Bxh7+ {[%clk 0:00:56.2]}
18... Kh8 {[%clk 0:00:52]} 19. Ne4 {[%clk 0:00:56.8]} 19... Nf3+ {[%clk
0:00:48.8]} 20. Kh1 {[%clk 0:00:55.8]} 20... Qh6 {[%clk 0:00:49.1]} 21. Qxf3
{[%clk 0:00:45.7]} 21... Rxf3 {[%clk 0:00:47.3]} 22. Nxg5 {[%clk 0:00:46.4]}
22... Qh5 {[%clk 0:00:42.6]} 23. Nxf3 {[%clk 0:00:39.8]} 23... Qxf3+ {[%clk
0:00:42.5]} 24. Kg1 {[%clk 0:00:40.4]} 24... Kxh7 {[%clk 0:00:41.3]} 25. Re3
{[%clk 0:00:32.2]} 25... Qd1+ {[%clk 0:00:37.4]} 26. Kg2 {[%clk 0:00:32.6]}
26... Bd7 {[%clk 0:00:35.5]} 27. b3 {[%clk 0:00:21.1]} 27... Bc6+ {[%clk
0:00:34.5]} 28. Kh3 {[%clk 0:00:17.3]} 28... Qh5# {[%clk 0:00:32.1]} 0-1

[Event "Early-Titled-Tuesday-Blitz-December-26-2023"]
[Site "Chess.com"]
[Date "2023.12.26"]
[Round "2"]
[White "missponyo10"]
[Black "ploxoi"]
[Result "0-1"]
[WhiteElo "2228"]
[BlackElo "2512"]
[TimeControl "180+1"]
[EndTime "8:16:16 PST"]
[Termination "ploxoi won by checkmate"]

1. e4 {[%clk 0:02:56.6]} 1... c5 {[%clk 0:02:58.4]} 2. Nf3 {[%clk 0:02:56.1]}
2... e6 {[%clk 0:02:58.7]} 3. d3 {[%clk 0:02:55.4]} 3... Nc6 {[%clk 0:02:58.4]}
4. Nbd2 {[%clk 0:02:56.2]} 4... d5 {[%clk 0:02:58.9]} 5. g3 {[%clk 0:02:57.1]}
5... Nf6 {[%clk 0:02:59.3]} 6. Bg2 {[%clk 0:02:57.5]} 6... g6 {[%clk 0:03:00]}
7. O-O {[%clk 0:02:57.8]} 7... Bg7 {[%clk 0:03:00.7]} 8. Re1 {[%clk 0:02:56.3]}
8... O-O {[%clk 0:03:01.3]} 9. c3 {[%clk 0:02:56.6]} 9... a5 {[%clk 0:03:01.2]}
10. Qc2 {[%clk 0:02:57]} 10... h6 {[%clk 0:02:50.2]} 11. Nf1 {[%clk 0:02:56.2]}
11... b6 {[%clk 0:02:47.4]} 12. exd5 {[%clk 0:02:52.3]} 12... Nxd5 {[%clk
0:02:46.5]} 13. Ne3 {[%clk 0:02:49]} 13... Nf6 {[%clk 0:02:38.4]} 14. Ne5 {[%clk
0:02:30]} 14... Nxe5 {[%clk 0:02:38.1]} 15. Bxa8 {[%clk 0:02:30.7]} 15... Ba6
{[%clk 0:02:38.7]} 16. Be4 {[%clk 0:02:25.9]} 16... Nxe4 {[%clk 0:02:38]} 17.
dxe4 {[%clk 0:02:26.8]} 17... Nf3+ {[%clk 0:02:36.3]} 18. Kh1 {[%clk 0:02:27]}
18... Bd3 {[%clk 0:02:34.6]} 19. Qd1 {[%clk 0:02:25.8]} 19... Bxe4 {[%clk
0:02:29.3]} 20. Ng2 {[%clk 0:02:22.6]} 20... Nxe1 {[%clk 0:02:27.6]} 21. Qxe1
{[%clk 0:02:20.6]} 21... Qd5 {[%clk 0:02:27.7]} 22. Qg1 {[%clk 0:02:16.4]} 22...
Rd8 {[%clk 0:02:27.4]} 23. Be3 {[%clk 0:02:15]} 23... h5 {[%clk 0:02:27.4]} 24.
h4 {[%clk 0:02:13.1]} 24... Bf6 {[%clk 0:02:20.2]} 25. Kh2 {[%clk 0:02:11.6]}
25... Bxg2 {[%clk 0:02:15.2]} 26. Qxg2 {[%clk 0:02:11.4]} 26... Kg7 {[%clk
0:02:10.9]} 27. f3 {[%clk 0:02:05.5]} 27... Qe5 {[%clk 0:02:06.3]} 28. Bf4
{[%clk 0:02:01.1]} 28... Qf5 {[%clk 0:02:05]} 29. Qe2 {[%clk 0:01:57.9]} 29...
Qd3 {[%clk 0:02:03.1]} 30. Re1 {[%clk 0:01:57]} 30... b5 {[%clk 0:02:02.1]} 31.
Qf2 {[%clk 0:01:54.7]} 31... Rd5 {[%clk 0:01:59.4]} 32. Kg2 {[%clk 0:01:52.2]}
32... Qf5 {[%clk 0:01:54.6]} 33. Re2 {[%clk 0:01:48.2]} 33... Bxh4 {[%clk
0:01:52.4]} 34. Rd2 {[%clk 0:01:42]} 34... Bf6 {[%clk 0:01:48.7]} 35. Qe3 {[%clk
0:01:37.6]} 35... Rxd2+ {[%clk 0:01:44.4]} 36. Qxd2 {[%clk 0:01:37.4]} 36... Qd5
{[%clk 0:01:45.3]} 37. Qe2 {[%clk 0:01:34.6]} 37... b4 {[%clk 0:01:42.6]} 38.
cxb4 {[%clk 0:01:31.9]} 38... axb4 {[%clk 0:01:38.2]} 39. b3 {[%clk 0:01:31.3]}
39... Qf5 {[%clk 0:01:35.9]} 40. Qe3 {[%clk 0:01:25.8]} 40... Bd4 {[%clk
0:01:34.7]} 41. Qd2 {[%clk 0:01:24.9]} 41... f6 {[%clk 0:01:32.2]} 42. Qe2
{[%clk 0:01:19.2]} 42... g5 {[%clk 0:01:31.4]} 43. Bc1 {[%clk 0:01:16.8]} 43...
h4 {[%clk 0:01:29.4]} 44. g4 {[%clk 0:01:09.2]} 44... Qb1 {[%clk 0:01:29.5]} 45.
Qxe6 {[%clk 0:00:57.2]} 45... Qxa2+ {[%clk 0:01:24.2]} 46. Kh3 {[%clk
0:00:56.4]} 46... Qa7 {[%clk 0:01:24.3]} 47. Qf5 {[%clk 0:00:53.1]} 47... Qf7
{[%clk 0:01:22.1]} 48. Qd3 {[%clk 0:00:49]} 48... Qe6 {[%clk 0:01:20.2]} 49. Bd2
{[%clk 0:00:44.7]} 49... Qe5 {[%clk 0:01:16.9]} 50. Kg2 {[%clk 0:00:38.8]} 50...
Qg3+ {[%clk 0:01:16.1]} 51. Kf1 {[%clk 0:00:39]} 51... Qf2# {[%clk 0:01:16.4]}
0-1

[Event "Early-Titled-Tuesday-Blitz-December-26-2023"]
[Site "Chess.com"]
[Date "2023.12.26"]
[Round "2"]
[White "MIss_MIaMI"]
[Black "Klavdia_Nik"]
[Result "1-0"]
[WhiteElo "2436"]
[BlackElo "1986"]
[TimeControl "180+1"]
[EndTime "8:16:17 PST"]
[Termination "MIss_MIaMI won on time"]

1. e4 {[%clk 0:02:59.5]} 1... e6 {[%clk 0:02:57.2]} 2. d4 {[%clk 0:02:58.8]}
2... d5 {[%clk 0:02:57.3]} 3. exd5 {[%clk 0:02:59.7]} 3... exd5 {[%clk
0:02:57.3]} 4. Qf3 {[%clk 0:03:00]} 4... Nf6 {[%clk 0:02:55.5]} 5. h3 {[%clk
0:03:00.5]} 5... Bb4+ {[%clk 0:02:54.6]} 6. c3 {[%clk 0:03:00.6]} 6... Be7
{[%clk 0:02:54.7]} 7. Bd3 {[%clk 0:03:01.2]} 7... c5 {[%clk 0:02:51.9]} 8. Ne2
{[%clk 0:02:57.3]} 8... c4 {[%clk 0:02:51.2]} 9. Bc2 {[%clk 0:02:57.2]} 9... Nc6
{[%clk 0:02:51.2]} 10. g4 {[%clk 0:02:51.5]} 10... O-O {[%clk 0:02:28]} 11. Bf4
{[%clk 0:02:34.9]} 11... Be6 {[%clk 0:02:19.3]} 12. Nd2 {[%clk 0:02:32.8]} 12...
b5 {[%clk 0:02:18.3]} 13. g5 {[%clk 0:02:32.6]} 13... Nd7 {[%clk 0:02:05.8]} 14.
h4 {[%clk 0:02:25.9]} 14... Nb6 {[%clk 0:02:00.3]} 15. Rg1 {[%clk 0:02:00.8]}
15... b4 {[%clk 0:01:55.4]} 16. h5 {[%clk 0:01:56.6]} 16... a5 {[%clk 0:01:41]}
17. Qg3 {[%clk 0:01:46.1]} 17... f5 {[%clk 0:00:42.1]} 18. gxf6 {[%clk 0:01:29]}
18... Bxf6 {[%clk 0:00:40.2]} 19. Bc7 {[%clk 0:01:28]} 19... Qe8 {[%clk
0:00:28.4]} 20. Bxb6 {[%clk 0:01:12.2]} 20... Qxh5 {[%clk 0:00:22.8]} 21. Nf4
{[%clk 0:01:11.8]} 21... Qf7 {[%clk 0:00:21]} 22. Kf1 {[%clk 0:00:34.3]} 1-0

[Event "Early-Titled-Tuesday-Blitz-December-26-2023"]
[Site "Chess.com"]
[Date "2023.12.26"]
[Round "2"]
[White "zubridis"]
[Black "Drags95"]
[Result "0-1"]
[WhiteElo "2559"]
[BlackElo "2795"]
[TimeControl "180+1"]
[EndTime "8:16:19 PST"]
[Termination "Drags95 won on time"]

1. Nf3 {[%clk 0:02:59.5]} 1... d5 {[%clk 0:02:49.9]} 2. d4 {[%clk 0:02:56.3]}
2... Nf6 {[%clk 0:02:48.8]} 3. Bf4 {[%clk 0:02:56.2]} 3... c5 {[%clk 0:02:48.7]}
4. e3 {[%clk 0:02:56.3]} 4... Nc6 {[%clk 0:02:48.8]} 5. Nbd2 {[%clk 0:02:54.8]}
5... Qb6 {[%clk 0:02:45.7]} 6. Rb1 {[%clk 0:02:53.6]} 6... cxd4 {[%clk
0:02:42.9]} 7. exd4 {[%clk 0:02:47]} 7... Nxd4 {[%clk 0:02:43.2]} 8. Nxd4 {[%clk
0:02:33.7]} 8... Qxd4 {[%clk 0:02:44.1]} 9. Bb5+ {[%clk 0:02:21.8]} 9... Bd7
{[%clk 0:02:41.4]} 10. Be3 {[%clk 0:02:06.8]} 10... Qb4 {[%clk 0:02:34.9]} 11.
Bxd7+ {[%clk 0:02:05]} 11... Nxd7 {[%clk 0:02:35.8]} 12. O-O {[%clk 0:02:01]}
12... e6 {[%clk 0:02:31.8]} 13. c4 {[%clk 0:01:47.8]} 13... dxc4 {[%clk
0:02:25.5]} 14. b3 {[%clk 0:01:17.9]} 14... c3 {[%clk 0:02:22.5]} 15. Nc4 {[%clk
0:01:18.2]} 15... Rc8 {[%clk 0:01:39.4]} 16. a3 {[%clk 0:00:49.4]} 16... Qb5
{[%clk 0:01:38]} 17. Rc1 {[%clk 0:00:24.4]} 17... Be7 {[%clk 0:01:25.5]} 18.
Rxc3 {[%clk 0:00:16.9]} 18... O-O {[%clk 0:01:23.7]} 19. Bd4 {[%clk 0:00:11.8]}
19... Nf6 {[%clk 0:01:20.2]} 20. Bxa7 {[%clk 0:00:10.2]} 20... Rfd8 {[%clk
0:01:13.4]} 21. Qf3 {[%clk 0:00:08.6]} 21... Qa6 {[%clk 0:01:00.9]} 22. Bb6
{[%clk 0:00:05.7]} 22... Rd5 {[%clk 0:00:41.6]} 23. Be3 {[%clk 0:00:02.5]} 23...
b5 {[%clk 0:00:38.3]} 0-1

[Event "Early-Titled-Tuesday-Blitz-December-26-2023"]
[Site "Chess.com"]
[Date "2023.12.26"]
[Round "2"]
[White "Navyblue1"]
[Black "artin10862"]
[Result "0-1"]
[WhiteElo "2161"]
[BlackElo "2922"]
[TimeControl "180+1"]
[EndTime "8:16:24 PST"]
[Termination "artin10862 won on time"]

1. d4 {[%clk 0:02:53.7]} 1... d5 {[%clk 0:02:54.2]} 2. c4 {[%clk 0:02:53.5]}
2... dxc4 {[%clk 0:02:54.1]} 3. e4 {[%clk 0:02:52.4]} 3... Nf6 {[%clk
0:02:48.2]} 4. e5 {[%clk 0:02:50.2]} 4... Nd5 {[%clk 0:02:47.9]} 5. Bxc4 {[%clk
0:02:50.6]} 5... Nb6 {[%clk 0:02:43.2]} 6. Bb3 {[%clk 0:02:48.7]} 6... Nc6
{[%clk 0:02:39.8]} 7. Be3 {[%clk 0:02:34.1]} 7... Bf5 {[%clk 0:02:39.3]} 8. Nc3
{[%clk 0:02:28.5]} 8... e6 {[%clk 0:02:36.4]} 9. Nge2 {[%clk 0:02:18]} 9... Be7
{[%clk 0:02:36]} 10. O-O {[%clk 0:02:13.1]} 10... Na5 {[%clk 0:02:29.8]} 11. Bc2
{[%clk 0:02:03.3]} 11... Bxc2 {[%clk 0:02:26.5]} 12. Qxc2 {[%clk 0:02:04.2]}
12... O-O {[%clk 0:02:26.8]} 13. Rad1 {[%clk 0:01:40.2]} 13... Qd7 {[%clk
0:02:21.5]} 14. f4 {[%clk 0:01:29.4]} 14... Rfd8 {[%clk 0:02:14.7]} 15. f5
{[%clk 0:01:16.5]} 15... exf5 {[%clk 0:02:10.6]} 16. Qxf5 {[%clk 0:01:13.4]}
16... Qxf5 {[%clk 0:02:07.8]} 17. Rxf5 {[%clk 0:01:14.3]} 17... Nd5 {[%clk
0:02:07]} 18. Nxd5 {[%clk 0:01:11.3]} 18... Rxd5 {[%clk 0:02:06.9]} 19. Nc3
{[%clk 0:01:11]} 19... Rd7 {[%clk 0:02:04.7]} 20. Rdf1 {[%clk 0:00:51.6]} 20...
Nc4 {[%clk 0:02:01.9]} 21. Bc1 {[%clk 0:00:43]} 21... Bb4 {[%clk 0:02:00.7]} 22.
R5f4 {[%clk 0:00:29.1]} 22... Rad8 {[%clk 0:01:57.2]} 23. h3 {[%clk 0:00:19.1]}
23... Nb6 {[%clk 0:01:44.8]} 24. a3 {[%clk 0:00:17.4]} 24... Bf8 {[%clk
0:01:40.3]} 25. Ne2 {[%clk 0:00:16.1]} 25... c5 {[%clk 0:01:37.2]} 26. Be3
{[%clk 0:00:14.5]} 26... Nc4 {[%clk 0:01:28.3]} 27. Bf2 {[%clk 0:00:10]} 27...
Nxb2 {[%clk 0:01:28.2]} 28. dxc5 {[%clk 0:00:10.2]} 28... Nd3 {[%clk 0:01:27.6]}
29. Rf3 {[%clk 0:00:05.6]} 29... Nxe5 {[%clk 0:01:21.7]} 30. Rc3 {[%clk
0:00:05.2]} 30... Nd3 {[%clk 0:01:21.5]} 31. Be3 {[%clk 0:00:05.3]} 31... Re8
{[%clk 0:01:21.8]} 32. Rf3 {[%clk 0:00:04.4]} 32... Ne5 {[%clk 0:01:20.7]} 33.
Rg3 {[%clk 0:00:04.3]} 33... Nc6 {[%clk 0:01:20.7]} 34. Nf4 {[%clk 0:00:03.6]}
34... f6 {[%clk 0:01:15.7]} 35. Nh5 {[%clk 0:00:03.4]} 35... Kf7 {[%clk
0:01:16]} 36. Rf3 {[%clk 0:00:03.1]} 36... Be7 {[%clk 0:01:09.8]} 37. Ng3 {[%clk
0:00:02.7]} 37... Bd8 {[%clk 0:01:09.9]} 38. Nf5 {[%clk 0:00:02.6]} 38... Bc7
{[%clk 0:01:10.5]} 0-1